Cogmind - Beta 15 @@@ ROGUE MODE // 2025.05.30 @ 16:31:34 Player: Goofy__J Result: Destroyed by G-47 Trooper with Particle Gun Performance ------------- Evolutions (2) 1000 Regions Visited (5) 1000 Robots Destroyed (58) 290 Value Destroyed (1894) 1894 Prototype IDs (2) 40 Alien Tech Used (0) 0 Bonus (109) 109 TOTAL SCORE: 4333 Bonus ------- High Alert Combat Kills 109 Cogmind --------- Core Integrity 0/550 Matter 222/300 Energy 147/325 System Corruption 33% Temperature Cool (81) Movement Treading (160) Location -8/Materials Parts ------- > --- POWER (1) -------- Light Ion Engine > --- PROPULSION (5) --- Light Treads > --- UTILITY (3) ------ Compact Battery Core Shielding > --- WEAPON (2) ------- Particle Gun Maul > --- INVENTORY (5) ---- Light Assault Rifle Peak State ------------ > --- POWER ------------ Light Ion Engine > --- PROPULSION ------- Carbon-fiber Leg Carbon-fiber Leg Carbon-fiber Leg Carbon-fiber Leg Carbon-fiber Leg > --- UTILITY ---------- Heat Sink Medium Armor Plating High-powered Tractor Beam > --- WEAPON ----------- Welding Torch Maul > --- INVENTORY -------- Light Ion Engine Carbon-fiber Leg Carbon-fiber Leg Light Assault Rifle [Rating: 25] Favorites ----------- Power Heavy Ion Engine Engine Heavy Ion Engine Propulsion Light Treads Treads Light Treads Leg Carbon-fiber Leg Wheel Armored Wheel Flight Unit Flight Unit Utility Compact Battery Device Heat Sink Storage Compact Battery Processor Advanced Visual Processing Unit Protection Core Shielding Weapon Heavy EM Pulse Gun Energy Gun Heavy EM Pulse Gun Ballistic Gun Heavy Assault Rifle Launcher Shock Bomb Launcher Special Weapon Welding Torch Impact Weapon Maul Build | -11 -10 -10 -9 -9 -8 ------- Run | Yrd Mat Min Mat Min Mat Slots Evolved 4 | . . . 2 . 2 Power . | . . . . . . Propulsion 3 | . . . 1 . 2 Utility 1 | . . . 1 . . Weapon . | . . . . . . Parts Attached 59 | 5 3 . 18 . 33 Power 6 | 1 . . 3 . 2 Engine 6 | 1 . . 3 . 2 Core . | . . . . . . Reactor . | . . . . . . Propulsion 27 | 2 2 . 6 . 17 Treads 11 | 2 . . . . 9 Leg 7 | . . . . . 7 Wheel 4 | . 2 . 2 . . Hover . | . . . . . . Flight 5 | . . . 4 . 1 Utility 12 | . 1 . 4 . 7 Device 3 | . 1 . 1 . 1 Storage 2 | . . . 1 . 1 Processor 3 | . . . 1 . 2 Hackware . | . . . . . . Protection 4 | . . . 1 . 3 Artifact . | . . . . . . Weapon 14 | 2 . . 5 . 7 Energy Gun 8 | 2 . . 1 . 5 Energy Cannon . | . . . . . . Ballistic Gun 3 | . . . 3 . . Ballistic Cannon . | . . . . . . Launcher 1 | . . . . . 1 Special Weapon 1 | . . . . . 1 Impact Weapon 1 | . . . 1 . . Slashing Weapon . | . . . . . . Piercing Weapon . | . . . . . . Special Melee Weapon . | . . . . . . Unidentified Prototypes 2 | . . . . . 2 Corrupted Parts 6 | . . . . . 6 System Corruption 32 | . . . . . 32 Parts Lost 34 | . . 2 9 . 23 Power 5 | . . 1 2 . 2 Propulsion 17 | . . . 3 . 14 Utility 3 | . . . . . 3 Weapon 9 | . . 1 4 . 4 Highest Loss Streak 9 | . . 2 9 . 7 To Critical Strikes . | . . . . . . Average Backups 3 | 1 3 4 2 5 3 Power . | . 1 1 . 1 . Propulsion . | . 1 2 . 2 . Utility . | . . . . 1 . Weapon 1 | . 1 1 . 1 2 Tool/Special . | . . . . . . Unused Backups . | . . . . . . Power . | . . . . . . Propulsion . | . . . . . . Utility . | . . . . . . Weapon . | . . . . . . Tool/Special . | . . . . . . Average Slot Usage (%) 74 | . 76 85 73 66 74 Engine 9 | . 14 14 9 11 8 Treads 9 | . 2 . . . 14 Leg 8 | . . . . . 12 Wheel 7 | . 24 28 19 . . Flight 2 | . . . 5 33 . Device 4 | . 6 14 6 . 3 Storage 4 | . . . 6 . 4 Processor 7 | . . . 6 . 9 Protection 4 | . . . 3 11 4 Energy Gun 10 | . 28 28 3 . 10 Ballistic Gun 2 | . . . 9 . . Impact Weapon 2 | . . . 3 11 2 Peak Build Rating 25 | 5 8 8 16 8 25 Average Rating 15 | 3 7 7 10 8 18 On Entrance 5 | . 5 8 6 8 8 Naked Turns . | . . . . . . Heaviest Build 18 | 9 10 10 15 13 18 Greatest Support 100 | 40 40 24 36 12 100 Greatest Overweight (x) 4 | . 2 . 4 1 4 Average Overweight (x) . | . . . . 1 . Largest Inventory Capacity 5 | 5 5 5 5 5 5 Average Capacity 5 | 5 5 5 5 5 5 Most Carried 5 | 2 4 4 5 5 5 Average Carried 3 | 1 3 4 3 5 3 Final Capacity 5 | 5 5 5 5 5 5 Final Carried 5 | 2 4 4 5 5 1 Class Distribution -------------------- 84% | Mutant 15% | Scavenger-Mutant Dominant Class ---------------- Mutant | -10/Materials Mutant | -10/Mines Mutant | -9/Materials Scavenger-Mutant | -9/Mines Mutant | -8/Materials Resources | -11 -10 -10 -9 -9 -8 ----------- Run | Yrd Mat Min Mat Min Mat Matter Collected 899 | 189 . 48 304 . 358 Remotely 56 | . . . . . 56 Salvage Created 2114 | . 88 29 309 . 1688 Parts 121 | . 4 3 24 . 90 Haulers Intercepted 1 | . . . . . 1 Recyclers Shooed . | . . . . . . Parts Field Recycled . | . . . . . . Retrieved Matter . | . . . . . . Parts Self-Destructed . | . . . . . . Prevented . | . . . . . . Kills | -11 -10 -10 -9 -9 -8 ------- Run | Yrd Mat Min Mat Min Mat Combat Hostiles Destroyed 48 | . 2 2 10 . 34 Melee 6 | . . . 1 . 5 Guns 25 | . 2 2 9 . 12 AOE 13 | . . . . . 13 Classes Destroyed 11 | . 3 . 2 . 6 Builder 3 | . . . . . 3 Hauler 1 | . . . . . 1 Recycler 1 | . . . . . 1 Operator 2 | . . . 1 . 1 Watcher 3 | . 1 . 1 . 1 Swarmer 16 | . 1 2 6 . 7 Grunt 21 | . 1 . 3 . 17 Brawler 1 | . . . . . 1 Duelist 1 | . . . . . 1 Sentry 8 | . . . 1 . 7 Hunter 1 | . . . . . 1 Best Kill Streak 9 | . 3 2 6 . 9 Combat Bots Only 8 | . 2 2 5 . 8 Max Kills in Single Turn 2 | . 1 1 2 . 2 Gunslinging 1 | . . . 1 . 1 Exploded 2 | . . . . . 2 Melee 1 | . . . 1 . 1 Uniques/NPCs Destroyed . | . . . . . . Combat | -11 -10 -10 -9 -9 -8 -------- Run | Yrd Mat Min Mat Min Mat Hostile Shots Fired 483 | . 14 16 153 . 300 Missed 154 | . 6 3 45 . 100 Hits 329 | . 8 13 108 . 200 Melee 2 | . . . . . 2 Projectile 327 | . 8 13 108 . 198 AOE 6 | . . 6 . . . Critical Strikes 12 | . . . . . 12 Damage Taken 4473 | . 73 298 1011 . 3091 Core 865 | . . 94 217 . 554 Absorbed by Shields . | . . . . . . Redirected to Shielding 42 | . . . . . 42 Core Remaining (%) 69 | 100 . 62 . 45 . Volleys Fired 101 | . 6 4 28 . 63 Largest 2 | . 2 2 2 . 2 Hottest 115 | . 100 100 100 . 115 Shots Fired 173 | . 12 8 48 . 105 Gun 154 | . 12 8 48 . 86 Cannon . | . . . . . . Launcher 12 | . . . . . 12 Special 7 | . . . . . 7 Kinetic 36 | . . . 36 . . Thermal 63 | . 12 8 12 . 31 Explosive . | . . . . . . Electromagnetic 74 | . . . . . 74 Robot Hit Streak 6 | . 3 2 6 . 5 Robot Miss Streak 5 | . 2 3 4 . 5 Penetration Max . | . . . . . . Secondary Targets 5 | . . . 3 . 2 Max Gunslinging Chain 1 | . . . 1 . 1 Shots Hit Robots 108 | . 7 3 27 . 71 Core Hits 71 | . 4 2 13 . 52 Critical Kills 1 | . . . . . 1 Critical Parts Destroyed 5 | . . . . . 5 Critical Strikes 8 | . 1 . . . 7 Burn 2 | . 1 . . . 1 Smash 6 | . . . . . 6 Melee Attacks 20 | . . . 2 . 18 Impact 20 | . . . 2 . 18 Slashing . | . . . . . . Piercing . | . . . . . . Sneak Attacks 1 | . . . . . 1 Combat Hostiles . | . . . . . . Follow-up Attacks . | . . . . . . Damage Inflicted 3523 | . 113 38 477 . 2895 Guns 1352 | . 113 38 424 . 777 Cannons . | . . . . . . Explosions 1367 | . . . . . 1367 Melee 792 | . . . 53 . 739 Ramming 4 | . . . . . 4 Kinetic 347 | . . . 347 . . Thermal 1029 | . 113 38 77 . 801 Explosive . | . . . . . . Electromagnetic 1351 | . . . . . 1351 Impact 792 | . . . 53 . 739 Slashing . | . . . . . . Piercing . | . . . . . . Highest Corruption 33 | . . . . . 33 Average Corruption 7 | . . . . . 7 Corruption Purged . | . . . . . . Corruption Blocked . | . . . . . . Effects 22 | . . . . . 22 Message Errors 7 | . . . . . 7 Matter Fused 1 | . . . . . 1 Heat Flow Errors 3 | . . . . . 3 Energy Discharges 2 | . . . . . 2 Parts Rejected 1 | . . . . . 1 Parts Fused 1 | . . . . . 1 Data Loss (minor) 1 | . . . . . 1 Data Loss (major) 2 | . . . . . 2 Misfires 2 | . . . . . 2 Alerts 1 | . . . . . 1 Misdirections 1 | . . . . . 1 Overload Shots . | . . . . . . Overflow Damage 397 | . . . . . 397 Projectiles . | . . . . . . Explosions 100 | . . . . . 100 Melee 297 | . . . . . 297 Knockbacks 2 | . . . . . 2 Impact 2 | . . . . . 2 Kinetic . | . . . . . . Secondary . | . . . . . . Self-Inflicted Damage 247 | . . . . . 247 Shots 7 | . . . . . 7 Rammed 3 | . . . . . 3 Targets Rammed 4 | . . . . . 4 Kicked . | . . . . . . Crushed 1 | . . . . . 1 Highest Temperature 459 | . 78 18 15 . 459 Average Temperature 117 | . 43 10 6 . 139 Received Heat Transfer 1488 | . 24 . 150 . 1314 Effects 2 | . . . . . 2 Interference 1 | . . . . . 1 Matter Decay 1 | . . . . . 1 Siege Activations . | . . . . . . Martial Activations . | . . . . . . Shielding Activations . | . . . . . . Robots Disrupted . | . . . . . . Combat Hostiles . | . . . . . . Robots Corrupted 4 | . . . . . 4 Combat Hostiles 4 | . . . . . 4 Parts Fried 9 | . . . . . 9 Impact Corruptions 10 | . . . . . 10 Robots Melted . | . . . . . . Combat Hostiles . | . . . . . . Parts Melted 2 | . 1 . . . 1 Heat Transferred 1884 | . 407 111 222 . 1144 Parts Sabotaged . | . . . . . . Parts Stolen . | . . . . . . Parts Stripped . | . . . . . . Power Chain Reactions 12 | . . . . . 12 Alert | -11 -10 -10 -9 -9 -8 ------- Run | Yrd Mat Min Mat Min Mat Maximum Alert Level 3 | . . . . . 3 Low Security (%) 92 | 100 100 100 100 100 88 Level 1 2 | . . . . . 3 Level 2 3 | . . . . . 5 Level 3 1 | . . . . . 2 Level 4 . | . . . . . . Level 5 . | . . . . . . High Security . | . . . . . . Max Security . | . . . . . . Peak Influence 780 | . 50 45 122 8 780 Initial 15 | . . 15 . 8 . Average 72 | . 5 22 43 3 99 Influence Increases 1647 | . 57 40 272 . 1278 Destroy 0b10 Robot/C 960 | . 40 40 200 . 680 Destroy 0b10 Robot/NC 50 | . 5 . 10 . 35 Destroy Leader 208 | . 12 . 42 . 154 Successful Hack 22 | . . . 20 . 2 Disable Machine 105 | . . . . . 105 Anti-Garrison Action 150 | . . . . . 150 Destroy Structure 77 | . . . . . 77 Lose Combat Pursuer 75 | . . . . . 75 Influence Decreases 921 | . 17 80 250 22 552 Entered New Map 39 | . . 25 . 14 . Time Decay 567 | . 17 50 160 8 332 Lost Part 315 | . . 5 90 . 220 Squads Dispatched 9 | . 1 . 1 . 7 Investigation 3 | . 1 . . . 2 Extermination . | . . . . . . Reinforcement 3 | . . . 1 . 2 Assault 2 | . . . . . 2 Garrison 1 | . . . . . 1 Intercept . | . . . . . . Searches Triggered . | . . . . . . Construction Impeded 1 | . . . . . 1 Haulers Reinforced . | . . . . . . Active Scanning Responses . | . . . . . . Cargo Convoy Interrupts . | . . . . . . Stealth | -11 -10 -10 -9 -9 -8 --------- Run | Yrd Mat Min Mat Min Mat Distress Signals 8 | . 2 . 2 . 4 Communications Jammed . | . . . . . . Distress Signals . | . . . . . . Times Spotted 77 | . 7 5 14 . 51 Peak Tracking Total 8 | . 6 3 8 . 7 Tactical Retreats 4 | . . . . . 4 Traps | -11 -10 -10 -9 -9 -8 ------- Run | Yrd Mat Min Mat Min Mat Traps Triggered 2 | . . . . . 2 Indirectly . | . . . . . . Trap Hack Attempts . | . . . . . . Triggered . | . . . . . . Disarmed . | . . . . . . Reprogrammed . | . . . . . . Reused . | . . . . . . Traps Extracted . | . . . . . . Installed . | . . . . . . Triggered . | . . . . . . Machines | -11 -10 -10 -9 -9 -8 ---------- Run | Yrd Mat Min Mat Min Mat Machines Disabled 8 | . . . . . 8 Max in Single Turn 3 | . . . . . 3 Garrison Access 1 | . . . . . 1 Machines Repaired . | . . . . . . Machines Dismantled . | . . . . . . Machines Sabotaged . | . . . . . . Overloaded Fab Kills . | . . . . . . Hacking | -11 -10 -10 -9 -9 -8 --------- Run | Yrd Mat Min Mat Min Mat Machines Accessed 10 | . 2 . 2 . 6 Terminals 8 | . 2 . 1 . 5 Fabricators . | . . . . . . Repair Stations . | . . . . . . Recycling Units . | . . . . . . Scanalyzers 2 | . . . 1 . 1 Garrison Access . | . . . . . . Total Hacks 29 | . 7 . 4 . 18 Successful 10 | . 1 . 3 . 6 Failed 19 | . 6 . 1 . 12 Catastrophic 5 | . 2 . . . 3 Database Lockouts . | . . . . . . Manual 17 | . 6 . 1 . 10 Terminals 18 | . 7 . 1 . 10 Fabricators . | . . . . . . Repair Stations . | . . . . . . Recycling Units . | . . . . . . Scanalyzers 11 | . . . 3 . 8 Garrison Access . | . . . . . . Terminal Hacks 2 | . 1 . 1 . . Branch Access Points 1 | . . . 1 . . Hauler Manifests 1 | . 1 . . . . Fabricator Hacks . | . . . . . . Repair Station Hacks . | . . . . . . Recycling Unit Hacks . | . . . . . . Scanalyzer 8 | . . . 2 . 6 Insert Component 4 | . . . 1 . 3 Analyze 4 | . . . 1 . 3 Garrison Access Hacks . | . . . . . . Unauthorized Hacks . | . . . . . . Terminals . | . . . . . . Fabricators . | . . . . . . Repair Stations . | . . . . . . Recycling Units . | . . . . . . Scanalyzers . | . . . . . . Garrison Access . | . . . . . . Data Cores Recovered . | . . . . . . Used . | . . . . . . Hacking Detections 9 | . 2 . 1 . 6 Full Trace Events 2 | . 1 . . . 1 Feedback Events . | . . . . . . Feedback Blocked . | . . . . . . Robot Schematics Acquired . | . . . . . . Robots Built . | . . . . . . Authchips . | . . . . . . Time . | . . . . . . Total Robot Build Rating . | . . . . . . Part Schematics Acquired 4 | . . . 1 . 3 Parts Built . | . . . . . . Authchips . | . . . . . . Time . | . . . . . . Total Part Build Rating . | . . . . . . Parts Repaired . | . . . . . . Time . | . . . . . . Parts Recycled . | . . . . . . Recycled Matter . | . . . . . . Retrieved Matter . | . . . . . . Retrieved Components . | . . . . . . Parts Scanalyzed 4 | . . . 1 . 3 Part Schematics Acquired 4 | . . . 1 . 3 Parts Damaged . | . . . . . . Bothacking | -11 -10 -10 -9 -9 -8 ------------ Run | Yrd Mat Min Mat Min Mat Used RIF Installer . | . . . . . . Robots Hacked . | . . . . . . Non-combat . | . . . . . . Combat . | . . . . . . Robot Hacks Applied . | . . . . . . Relay Couplers Released 2 | . . . . . 2 Machine Destruction 2 | . . . . . 2 Fabnet Peak Effective % . | . . . . . . Robots Rewired . | . . . . . . Allies Hacked . | . . . . . . Hacks Repelled . | . . . . . . Allies | -11 -10 -10 -9 -9 -8 -------- Run | Yrd Mat Min Mat Min Mat Total Allies . | . . . . . . Largest Group . | . . . . . . Highest-Rated Group . | . . . . . . Highest-Rated Ally . | . . . . . . Total Orders . | . . . . . . Ally Attacks . | . . . . . . Total Damage . | . . . . . . Kills . | . . . . . . Allies Corrupted . | . . . . . . Allies Melted . | . . . . . . Intel | -11 -10 -10 -9 -9 -8 ------- Run | Yrd Mat Min Mat Min Mat Active Infowar (turns) 637 | . . . . . 637 Optics 637 | . . . . . 637 Machine Analysis 589 | . . . . . 589 Robot Analysis Total . | . . . . . . Derelict Logs Recovered . | . . . . . . Drone Launches . | . . . . . . Drone Recoveries . | . . . . . . Exploration | -11 -10 -10 -9 -9 -8 ------------- Run | Yrd Mat Min Mat Min Mat Turns Passed 1929 | 79 101 108 392 44 1205 Spaces Moved 1047 | 45 81 72 229 39 581 Core 30 | 2 2 . 25 . 1 Treads 367 | 43 2 . . . 322 Legs 249 | . . . . . 249 Wheels 303 | . 77 72 154 . . Hover . | . . . . . . Flight 98 | . . . 50 39 9 Fastest Speed 31 | 50 90 90 50 114 31 Average Speed 125 | 155 93 90 95 114 144 Slowest Speed 280 | 160 160 90 280 114 250 Overloaded Moves . | . . . . . . Propulsion Burnouts . | . . . . . . Robots Hopped . | . . . . . . Potential Cave-ins . | . . . . . . Cave-ins Triggered . | . . . . . . Exploration Rate (%) 23 | 4 19 24 19 17 58 Regions Visited 5 Branch Regions 2 Pre-discovered Areas . | . . . . . . Known Exits Taken 1 | . . . 1 . . Unknown Exits Taken 4 | 1 1 1 . 1 . Scrap Searched . | . . . . . . Spaces Dug . | . . . . . . Terrain Destroyed 83 | . . . . . 83 Melee . | . . . . . . Projectile . | . . . . . . AOE 83 | . . . . . 83 Terrain Rammed . | . . . . . . Walls Destroyed . | . . . . . . Machines Disabled . | . . . . . . Actions | -11 -10 -10 -9 -9 -8 --------- Run | Yrd Mat Min Mat Min Mat Total 1432 | 52 93 107 346 38 796 Wait 161 | . . 32 56 . 73 Move 1042 | 44 80 71 228 38 581 Hop . | . . . . . . Pick Up 12 | 3 2 . 3 . 4 Fast Attach 47 | 4 3 . 12 . 28 Attach 18 | 1 . . 7 . 10 Detach 6 | . . . 4 . 2 Swap 4 | . . . 2 . 2 Drop 17 | . 2 . 4 . 11 Fire 101 | . 6 4 28 . 63 Melee 20 | . . . 2 . 18 Ram . | . . . . . . Kick . | . . . . . . Crush 4 | . . . . . 4 Escape Stasis . | . . . . . . Rewire . | . . . . . . Trap . | . . . . . . Miscellaneous . | . . . . . . Route ------- -11/Scrapyard -10/Materials -10/Mines -9/Materials (discovered 2 exits: *Min x2) -9/Mines -8/Materials History --------- Turn | Location | Event 27 | -11/Scrapyard | Discovered new exit (range 15) 80 | -11/Scrapyard | Entered Materials 175 | -10/Materials | Discovered new exit (range 7) 181 | -10/Materials | Entered Mines 282 | -10/Mines | Assembled infested the area 282 | -10/Mines | Discovered new exit (range 5) 287 | -10/Mines | Assisted by a Guerilla fighting off Assembled 289 | -10/Mines | Entered Materials 289 | -9/Materials | Evolved 2 slots: Propulsion x1, Utility x1 354 | -9/Materials | Build established: Mutant 466 | -9/Materials | Identified exit to Mines 547 | -9/Materials | Core integrity fell below 50% 572 | -9/Materials | Lost 9 parts (2p3n4w) 681 | -9/Materials | Entered Mines 710 | -9/Mines | Discovered new exit (range 13) 725 | -9/Mines | Entered Materials 725 | -8/Materials | Evolved 2 slots: Propulsion x2 974 | -8/Materials | Lost 7 parts (1p3n2u1w) 1166 | -8/Materials | Lost 3 parts (2n1w) 1246 | -8/Materials | Core integrity fell below 50% 1790 | -8/Materials | Garrison activated, responded to threat 1796 | -8/Materials | Core integrity fell below 20% 1845 | -8/Materials | System corruption reached 10% 1856 | -8/Materials | Destroyed 8 combat bots 1866 | -8/Materials | Lost 4 parts (3n1w) 1912 | -8/Materials | System corruption reached 30% 1930 | -8/Materials | Destroyed by G-47 Trooper with Particle Gun Last Messages --------------- Acquired Corrupted Lgt. Treads. Integrated Corrupted Lgt. Treads (+9). K-01 Serf collects debris. G-47 Trooper destroyed. Critical hit (Burn: +37). K-01 Serf collects debris. Lgt. Treads destroyed. Critical hit (Burn: +37). Shock Bomb Launcher destroyed. Hvy. Ion Engine destroyed. Critical hit (Burn: +37). Lgt. Treads destroyed. K-01 Serf collects debris. G-50 Soldier IFF system glitched. K-01 Serf collects debris. Lgt. Treads destroyed. Critical hit (Burn: +37). G-50 Soldier misfires. System corrupted: Energy discharge (-73). K-01 Serf collects debris. Map ----- +----------------------------------------------------+ | #??????# + #?????????????????????? | | ###????# # #?????????????????????? | | ""#????# ######+##?"""?????????????????? | | T"#???## ##???# #??"Y"?????????????????? | | ""#???# ##### ##?????????????????????? | | ###???# #?????????????????????? | | ####??# " + """?????????????????? | | !##?# # """?????????????????? | | "T" !#?# ###+#"# """?????????????????? | | !#?####### ????????????????? | | ] !#???????# ???????????????? | | ##### !#???????#== ?????????????? | | ????# !##???????#= #?????????????? | | ????# ####????????#= % m "#?????????????? | | ????# #???????????### ;;"#????????????""" | | ????# #????????????###g= ##????????????""" | | ???## ##??????????## #!% g ;#????????????""" | | ???# ############# " #???????????????? | | ???# "%" g " #???????????????? | | ???# " " " #???????????????? | | ???# %==[ " #???????????????? | | ???# ##########+## % !%[ #???????????????? | | ???#######??????# # %! #???????????????? | | ????????????????# """ # [#######?????????????? | | ????????????????# """ %= = #?????????????? | | ????????????????# """ ; @ =% "" #?????????????? | | ????????????????# ; ! G" #?????????????? | | ????????????????# [ ; ! " #?????????????? | | ????????????????######;# kg #?????????????? | | ?????????????????????## #?????????????? | | ??????????????????????## g [ #?????????????? | | ???????????????????????######/######?????????????? | | ????????????????????????????? ??????????????????? | | ????????????????????????????? ?????????????????? | | ?????????????????????????????? ????????????????? | | ??????????????????????????????###????????????????? | | ?????????????????????????????????????????????????? | | ?????????????????????????????????????????????????? | | ?????????????????????????????????????????????????? | | ?????????????????????????????????????????????????? | | ?????????????????????????????????????????????????? | | ?????????????????????????????????????????????????? | | ?????????????????????????????????????????????????? | | ?????????????????????????????????????????????????? | | ?????????????????????????????????????????????????? | | ?????????????????????????????????????????????????? | | ?????????????????????????????????????????????????? | | | | | | | +----------------------------------------------------+ Best States ------------- Heat Dissipation 41 Energy Generation 14 Energy Capacity 480 Matter Stores 304 Matter Capacity 400 Sight Range 20 Terrain Scan Density 85 Armor Coverage 225 Core Shielding 20 Weapon Shielding 66 Evasion (%) 63 Recoil Reduction 5 Trap Extractor Capacity 4 Item Schematics ----------------- Med. Laser | -9/Materials | Scanalyzed Maul | -8/Materials | Scanalyzed Lgt. Ion Engine | -8/Materials | Scanalyzed Lgt. Assault Rifle | -8/Materials | Scanalyzed Robot Schematics ------------------ None Fabricated ------------ Nothing Repaired ---------- Nothing Alien Tech Used ----------------- None Achievements -------------- None Challenges ------------ None Game ------ Seed GatlingLegThermoblaster Manual? 0 Play Time 00:26:21 Cumulative 10.9 hours Start 2025.05.30 @ 16:07:22 End 2025.05.30 @ 16:31:34 Sessions 1 Manual Loads 0 Difficulty Rogue Special Mode None Game No. 15 Rogue 5 Adventurer 5 Explorer 5 Win Type - Total 0 Types 0/0/0/0/0/0/0/0/0/0 Lore% 3 Gallery% 18 Achievement% 19 Wizard Run 0 Options --------- Layout 2 ASCII 0 Keyboard 0 Movement Mouse Keybinds 0 Fullscreen 1 Font 32/Cog Map View 25x24 Zoom Use 100% Tactical HUD 0 Map Filters NONE Filters NONE Steam 1 RUN: 8864fb85-2b48-477c-9533-6b5c854f0781